[Event "Titled Tuesday Blitz February 14 Early 2023"]
[White "Yuan, Qingyu"]
[Black "Toncheva, Nadya"]
[WhiteFideId "8609772"]
[BlackFideId "2924056"]
[WhiteElo "2373"]
[BlackElo "2295"]
[Result "1/2-1/2"]
[Round "03"]
[TimeControl "180+2"]
[Date "2023.02.15"]
[WhiteClock "0:00:06"]
[BlackClock "0:00:05"]

1. e4 {[%clk 0:03:00]}  c5 {[%clk 0:03:00]} 2. Nf3 {[%clk 0:03:00]}  Nc6 {[%clk 0:03:00]} 3. Bb5 {[%clk 0:03:01]}  e6 {[%clk 0:03:00]} 4. O-O {[%clk 0:03:01]}  Nge7 {[%clk 0:03:00]} 5. Re1 {[%clk 0:03:01]}  a6 {[%clk 0:02:59]} 6. Bf1 {[%clk 0:03:01]}  d5 {[%clk 0:03:00]} 7. exd5 {[%clk 0:03:02]}  Nxd5 {[%clk 0:03:01]} 8. d4 {[%clk 0:03:02]}  Nf6 {[%clk 0:03:01]} 9. Be3 {[%clk 0:03:01]}  cxd4 {[%clk 0:02:54]} 10. Nxd4 {[%clk 0:03:02]}  Nxd4 {[%clk 0:02:52]} 11. Bxd4 {[%clk 0:03:02]}  Be7 {[%clk 0:02:53]} 12. c4 {[%clk 0:02:58]}  O-O {[%clk 0:02:53]} 13. Nc3 {[%clk 0:02:58]}  Bd7 {[%clk 0:02:51]} 14. Qb3 {[%clk 0:02:49]}  Bc6 {[%clk 0:02:47]} 15. Bb6 {[%clk 0:02:47]}  Qc8 {[%clk 0:02:45]} 16. Rad1 {[%clk 0:02:45]}  Nd7 {[%clk 0:02:40]} 17. Bd4 {[%clk 0:02:29]}  Bf6 {[%clk 0:02:38]} 18. Bxf6 {[%clk 0:01:59]}  Nxf6 {[%clk 0:02:39]} 19. Qb6 {[%clk 0:01:57]}  Rd8 {[%clk 0:02:27]} 20. h3 {[%clk 0:01:54]}  h6 {[%clk 0:02:13]} 21. b3 {[%clk 0:01:54]}  Rxd1 {[%clk 0:02:06]} 22. Rxd1 {[%clk 0:01:54]}  Nd7 {[%clk 0:02:05]} 23. Qa5 {[%clk 0:01:48]}  Qd8 {[%clk 0:01:56]} 24. Qxd8+ {[%clk 0:01:45]}  Rxd8 {[%clk 0:01:57]} 25. g3 {[%clk 0:01:38]}  Kf8 {[%clk 0:01:57]} 26. Bg2 {[%clk 0:01:38]}  Bxg2 {[%clk 0:01:51]} 27. Kxg2 {[%clk 0:01:39]}  Ke7 {[%clk 0:01:51]} 28. Kf3 {[%clk 0:01:35]}  Ne5+ {[%clk 0:01:32]} 29. Ke4 {[%clk 0:01:36]}  Rxd1 {[%clk 0:01:22]} 30. Nxd1 {[%clk 0:01:37]}  Nc6 {[%clk 0:01:23]} 31. Ne3 {[%clk 0:01:09]}  f5+ {[%clk 0:01:12]} 32. Kf3 {[%clk 0:00:32]}  Nd4+ {[%clk 0:01:12]} 33. Kg2 {[%clk 0:00:21]}  e5 {[%clk 0:01:09]} 34. Kf1 {[%clk 0:00:18]}  Ke6 {[%clk 0:01:03]} 35. Ke1 {[%clk 0:00:18]}  g5 {[%clk 0:00:51]} 36. Kd2 {[%clk 0:00:14]}  Nf3+ {[%clk 0:00:41]} 37. Kc3 {[%clk 0:00:14]}  Ng1 {[%clk 0:00:32]} 38. h4 {[%clk 0:00:15]}  gxh4 {[%clk 0:00:32]} 39. gxh4 {[%clk 0:00:15]}  h5 {[%clk 0:00:33]} 40. Kb4 {[%clk 0:00:12]}  Nf3 {[%clk 0:00:30]} 41. Ng2 {[%clk 0:00:12]}  Kd6 {[%clk 0:00:26]} 42. c5+ {[%clk 0:00:09]}  Kc6 {[%clk 0:00:23]} 43. Kc4 {[%clk 0:00:10]}  Nd2+ {[%clk 0:00:18]} 44. Kb4 {[%clk 0:00:10]}  Ne4 {[%clk 0:00:19]} 45. f4 {[%clk 0:00:05]}  Nxc5 {[%clk 0:00:17]} 46. fxe5 {[%clk 0:00:05]}  Nd3+ {[%clk 0:00:18]} 47. Kc3 {[%clk 0:00:04]}  Nxe5 {[%clk 0:00:18]} 48. Nf4 {[%clk 0:00:05]}  Nf3 {[%clk 0:00:18]} 49. Nxh5 {[%clk 0:00:04]}  Nxh4 {[%clk 0:00:18]} 50. Nf4 {[%clk 0:00:04]}  Nf3 {[%clk 0:00:17]} 51. Kd3 {[%clk 0:00:03]}  Kd6 {[%clk 0:00:14]} 52. Ke3 {[%clk 0:00:04]}  Ne5 {[%clk 0:00:14]} 53. Kd4 {[%clk 0:00:04]}  Nc6+ {[%clk 0:00:14]} 54. Ke3 {[%clk 0:00:03]}  Nb4 {[%clk 0:00:11]} 55. Ne2 {[%clk 0:00:02]}  Nxa2 {[%clk 0:00:11]} 56. Kf4 {[%clk 0:00:02]}  b5 {[%clk 0:00:09]} 57. Kxf5 {[%clk 0:00:02]}  Kd5 {[%clk 0:00:09]} 58. Kf4 {[%clk 0:00:02]}  Nb4 {[%clk 0:00:09]} 59. Ke3 {[%clk 0:00:02]}  Kc5 {[%clk 0:00:09]} 60. Kd2 {[%clk 0:00:03]}  Nd5 {[%clk 0:00:09]} 61. Kc2 {[%clk 0:00:03]}  Kb4 {[%clk 0:00:09]} 62. Kb2 {[%clk 0:00:03]}  Ne3 {[%clk 0:00:08]} 63. Nc1 {[%clk 0:00:03]}  Nd5 {[%clk 0:00:03]} 64. Nd3+ {[%clk 0:00:03]}  Ka5 {[%clk 0:00:04]} 65. Nc5 {[%clk 0:00:04]}  Kb6 {[%clk 0:00:04]} 66. Nd3 {[%clk 0:00:04]}  Kc6 {[%clk 0:00:05]} 67. Ne5+ {[%clk 0:00:04]}  Kc5 {[%clk 0:00:04]} 68. Nd3+ {[%clk 0:00:05]}  Kb6 {[%clk 0:00:05]} 69. Kc2 {[%clk 0:00:04]}  a5 {[%clk 0:00:05]} 70. Kb2 {[%clk 0:00:05]}  Nb4 {[%clk 0:00:05]} 71. Ne5 {[%clk 0:00:03]}  Kc5 {[%clk 0:00:05]} 72. Nf3 {[%clk 0:00:03]}  Kd5 {[%clk 0:00:05]} 73. Kc3 {[%clk 0:00:03]}  Nc6 {[%clk 0:00:05]} 74. Nd2 {[%clk 0:00:03]}  Kc5 {[%clk 0:00:06]} 75. Ne4+ {[%clk 0:00:03]}  Kd5 {[%clk 0:00:06]} 76. Nd2 {[%clk 0:00:04]}  Ne5 {[%clk 0:00:05]} 77. Kc2 {[%clk 0:00:02]}  Kd4 {[%clk 0:00:05]} 78. Nb1 {[%clk 0:00:03]}  Nc6 {[%clk 0:00:05]} 79. Nc3 {[%clk 0:00:03]}  Nb4+ {[%clk 0:00:04]} 80. Kb2 {[%clk 0:00:03]}  Nd3+ {[%clk 0:00:05]} 81. Kc2 {[%clk 0:00:04]}  b4 {[%clk 0:00:04]} 82. Na4 {[%clk 0:00:04]}  Nc5 {[%clk 0:00:04]} 83. Nb2 {[%clk 0:00:04]}  Ne4 {[%clk 0:00:04]} 84. Nd1 {[%clk 0:00:04]}  Nc3 {[%clk 0:00:04]} 85. Nb2 {[%clk 0:00:04]}  Kc5 {[%clk 0:00:04]} 86. Nd3+ {[%clk 0:00:05]}  Kb5 {[%clk 0:00:05]} 87. Ne5 {[%clk 0:00:05]}  a4 {[%clk 0:00:05]} 88. bxa4+ {[%clk 0:00:05]}  Kxa4 {[%clk 0:00:05]} 89. Nd3 {[%clk 0:00:06]}  Nd5 {[%clk 0:00:05]} 90. Nxb4 {[%clk 0:00:06]} 1/2-1/2


[Site "https://www.chess.com"]

[Event "Titled Tuesday Blitz February 14 Early 2023"]
[White "Lortkipanidze, Nodar"]
[Black "Nguyen Hong Nhung"]
[WhiteFideId "13604058"]
[BlackFideId "12412201"]
[WhiteElo "2406"]
[BlackElo "2003"]
[Result "1-0"]
[Round "03"]
[TimeControl "180+2"]
[Date "2023.02.15"]
[WhiteClock "0:02:28"]
[BlackClock "0:01:27"]

1. e4 {[%clk 0:02:58]}  c5 {[%clk 0:03:00]} 2. c3 {[%clk 0:02:58]}  Nf6 {[%clk 0:03:00]} 3. e5 {[%clk 0:02:58]}  Nd5 {[%clk 0:03:00]} 4. d4 {[%clk 0:02:59]}  cxd4 {[%clk 0:03:01]} 5. Qxd4 {[%clk 0:03:00]}  e6 {[%clk 0:03:01]} 6. Nf3 {[%clk 0:03:01]}  Nc6 {[%clk 0:03:02]} 7. Qe4 {[%clk 0:03:02]}  f5 {[%clk 0:03:02]} 8. exf6 {[%clk 0:03:02]}  Nxf6 {[%clk 0:03:02]} 9. Qh4 {[%clk 0:03:02]}  Be7 {[%clk 0:02:59]} 10. Bd3 {[%clk 0:03:03]}  d5 {[%clk 0:02:57]} 11. Bg6+ {[%clk 0:03:03]}  Kf8 {[%clk 0:02:54]} 12. Bg5 {[%clk 0:03:01]}  Kg8 {[%clk 0:02:42]} 13. Bc2 {[%clk 0:03:01]}  e5 {[%clk 0:02:31]} 14. O-O {[%clk 0:02:59]}  e4 {[%clk 0:02:30]} 15. Nd4 {[%clk 0:02:59]}  Nxd4 {[%clk 0:02:28]} 16. cxd4 {[%clk 0:03:00]}  h6 {[%clk 0:02:25]} 17. Bxf6 {[%clk 0:02:57]}  Bxf6 {[%clk 0:02:26]} 18. Qh5 {[%clk 0:02:58]}  Be6 {[%clk 0:02:24]} 19. Nc3 {[%clk 0:02:57]}  Bf7 {[%clk 0:02:21]} 20. Qf5 {[%clk 0:02:52]}  Qc8 {[%clk 0:02:18]} 21. Qf4 {[%clk 0:02:47]}  Kh7 {[%clk 0:02:10]} 22. Bb3 {[%clk 0:02:48]}  Rd8 {[%clk 0:02:09]} 23. Rac1 {[%clk 0:02:46]}  Bg5 {[%clk 0:02:02]} 24. Qxf7 {[%clk 0:02:41]}  Bxc1 {[%clk 0:02:02]} 25. Rxc1 {[%clk 0:02:42]}  Qg4 {[%clk 0:01:49]} 26. Bxd5 {[%clk 0:02:40]}  Rf8 {[%clk 0:01:47]} 27. Bxe4+ {[%clk 0:02:35]}  Kh8 {[%clk 0:01:47]} 28. Qg6 {[%clk 0:02:34]}  Qxg6 {[%clk 0:01:47]} 29. Bxg6 {[%clk 0:02:35]}  Rac8 {[%clk 0:01:45]} 30. Rd1 {[%clk 0:02:35]}  Rf6 {[%clk 0:01:44]} 31. Be4 {[%clk 0:02:35]}  Rb6 {[%clk 0:01:45]} 32. Rd2 {[%clk 0:02:35]}  Kg8 {[%clk 0:01:44]} 33. f3 {[%clk 0:02:35]}  Kf8 {[%clk 0:01:44]} 34. d5 {[%clk 0:02:35]}  Rd8 {[%clk 0:01:44]} 35. Kf2 {[%clk 0:02:32]}  Ke7 {[%clk 0:01:44]} 36. f4 {[%clk 0:02:32]}  Kd6 {[%clk 0:01:45]} 37. Bf3 {[%clk 0:02:33]}  Kc7 {[%clk 0:01:37]} 38. Ne4 {[%clk 0:02:32]}  Kb8 {[%clk 0:01:34]} 39. d6 {[%clk 0:02:32]}  a6 {[%clk 0:01:34]} 40. Bg4 {[%clk 0:02:32]}  Rb4 {[%clk 0:01:34]} 41. Re2 {[%clk 0:02:31]}  Rd4 {[%clk 0:01:33]} 42. d7 {[%clk 0:02:31]}  b5 {[%clk 0:01:30]} 43. g3 {[%clk 0:02:29]}  b4 {[%clk 0:01:28]} 44. h4 {[%clk 0:02:29]}  a5 {[%clk 0:01:28]} 45. h5 {[%clk 0:02:30]}  a4 {[%clk 0:01:28]} 46. Nc5 {[%clk 0:02:30]}  a3 {[%clk 0:01:27]} 47. bxa3 {[%clk 0:02:30]}  bxa3 {[%clk 0:01:27]} 48. Re8 {[%clk 0:02:28]} 1-0


[Site "https://www.chess.com"]

[Event "Titled Tuesday Blitz February 14 Early 2023"]
[White "Turzo, Attila"]
[Black "Dimitrov, Atanas"]
[WhiteFideId "704954"]
[BlackFideId "2901315"]
[WhiteElo "2279"]
[BlackElo "2269"]
[Result "1-0"]
[Round "03"]
[TimeControl "180+2"]
[Date "2023.02.15"]
[WhiteClock "0:01:25"]
[BlackClock "0:00:56"]

1. d4 {[%clk 0:03:00]}  Nf6 {[%clk 0:02:59]} 2. c4 {[%clk 0:03:00]}  g6 {[%clk 0:02:57]} 3. Nc3 {[%clk 0:03:00]}  d5 {[%clk 0:02:57]} 4. Nf3 {[%clk 0:02:59]}  Bg7 {[%clk 0:02:57]} 5. Qb3 {[%clk 0:02:59]}  dxc4 {[%clk 0:02:56]} 6. Qxc4 {[%clk 0:03:00]}  O-O {[%clk 0:02:57]} 7. e4 {[%clk 0:03:00]}  a6 {[%clk 0:02:57]} 8. Be2 {[%clk 0:03:01]}  b5 {[%clk 0:02:56]} 9. Qb3 {[%clk 0:03:01]}  c5 {[%clk 0:02:57]} 10. dxc5 {[%clk 0:03:00]}  Be6 {[%clk 0:02:48]} 11. Qc2 {[%clk 0:02:48]}  Nc6 {[%clk 0:02:47]} 12. Be3 {[%clk 0:02:46]}  Qa5 {[%clk 0:02:37]} 13. O-O {[%clk 0:02:43]}  Rac8 {[%clk 0:02:36]} 14. Rfd1 {[%clk 0:02:31]}  Ng4 {[%clk 0:02:36]} 15. Bg5 {[%clk 0:02:18]}  h6 {[%clk 0:02:11]} 16. Bh4 {[%clk 0:02:00]}  g5 {[%clk 0:02:08]} 17. Bg3 {[%clk 0:02:00]}  Nb4 {[%clk 0:01:33]} 18. Qb1 {[%clk 0:01:54]}  Nc6 {[%clk 0:01:08]} 19. Nd5 {[%clk 0:01:50]}  b4 {[%clk 0:01:04]} 20. h3 {[%clk 0:01:33]}  Nge5 {[%clk 0:01:02]} 21. Nxe5 {[%clk 0:01:32]}  Bxd5 {[%clk 0:00:56]} 22. Rxd5 {[%clk 0:01:25]} 1-0


[Site "https://www.chess.com"]

[Event "Titled Tuesday Blitz February 14 Early 2023"]
[White "Fiorito, Francisco"]
[Black "Ajay, Karthikeyan"]
[WhiteFideId "180165"]
[BlackFideId "35011685"]
[WhiteElo "2305"]
[BlackElo "2454"]
[Result "0-1"]
[Round "03"]
[TimeControl "180+2"]
[Date "2023.02.15"]
[WhiteClock "0:00:06"]
[BlackClock "0:00:15"]

1. d4 {[%clk 0:03:00]}  f5 {[%clk 0:02:57]} 2. Nc3 {[%clk 0:02:59]}  e6 {[%clk 0:02:56]} 3. e4 {[%clk 0:02:56]}  fxe4 {[%clk 0:02:56]} 4. Nxe4 {[%clk 0:02:56]}  Nf6 {[%clk 0:02:56]} 5. Nxf6+ {[%clk 0:02:55]}  Qxf6 {[%clk 0:02:56]} 6. Nf3 {[%clk 0:02:56]}  b6 {[%clk 0:02:52]} 7. Bg5 {[%clk 0:02:50]}  Qf7 {[%clk 0:02:32]} 8. Bd3 {[%clk 0:02:43]}  Bd6 {[%clk 0:02:05]} 9. Qe2 {[%clk 0:02:37]}  Bb7 {[%clk 0:02:03]} 10. Be4 {[%clk 0:01:59]}  Bxe4 {[%clk 0:01:47]} 11. Qxe4 {[%clk 0:02:00]}  Nc6 {[%clk 0:01:47]} 12. d5 {[%clk 0:01:08]}  Nb4 {[%clk 0:01:47]} 13. a3 {[%clk 0:01:05]}  Nxd5 {[%clk 0:00:55]} 14. c4 {[%clk 0:01:05]}  O-O {[%clk 0:00:54]} 15. cxd5 {[%clk 0:01:00]}  exd5 {[%clk 0:00:55]} 16. Qd3 {[%clk 0:00:37]}  Rae8+ {[%clk 0:00:54]} 17. Be3 {[%clk 0:00:37]}  c5 {[%clk 0:00:52]} 18. O-O {[%clk 0:00:33]}  Qh5 {[%clk 0:00:43]} 19. h3 {[%clk 0:00:07]}  d4 {[%clk 0:00:37]} 20. Bxd4 {[%clk 0:00:05]}  cxd4 {[%clk 0:00:35]} 21. Qxd4 {[%clk 0:00:05]}  Bc5 {[%clk 0:00:31]} 22. Qc4+ {[%clk 0:00:05]}  d5 {[%clk 0:00:30]} 23. Qd3 {[%clk 0:00:05]}  Rxf3 {[%clk 0:00:27]} 24. Qxf3 {[%clk 0:00:05]}  Qxf3 {[%clk 0:00:27]} 25. gxf3 {[%clk 0:00:06]}  Re2 {[%clk 0:00:28]} 26. Rae1 {[%clk 0:00:06]}  Rxb2 {[%clk 0:00:28]} 27. Re8+ {[%clk 0:00:06]}  Kf7 {[%clk 0:00:28]} 28. Ra8 {[%clk 0:00:07]}  a5 {[%clk 0:00:28]} 29. Kg2 {[%clk 0:00:05]}  Bxa3 {[%clk 0:00:27]} 30. Ra7+ {[%clk 0:00:06]}  Kf6 {[%clk 0:00:27]} 31. Rc1 {[%clk 0:00:06]}  Bc5 {[%clk 0:00:27]} 32. Rf1 {[%clk 0:00:06]}  h6 {[%clk 0:00:23]} 33. f4 {[%clk 0:00:06]}  d4 {[%clk 0:00:22]} 34. Kf3 {[%clk 0:00:07]}  d3 {[%clk 0:00:23]} 35. Ke4 {[%clk 0:00:06]}  Rxf2 {[%clk 0:00:19]} 36. Rxf2 {[%clk 0:00:06]}  Bxf2 {[%clk 0:00:20]} 37. Kxd3 {[%clk 0:00:07]}  g6 {[%clk 0:00:19]} 38. Ke4 {[%clk 0:00:07]}  h5 {[%clk 0:00:19]} 39. Rc7 {[%clk 0:00:05]}  Bc5 {[%clk 0:00:18]} 40. Rc6+ {[%clk 0:00:06]}  Kf7 {[%clk 0:00:19]} 41. Ke5 {[%clk 0:00:05]}  a4 {[%clk 0:00:19]} 42. Rc7+ {[%clk 0:00:06]}  Ke8 {[%clk 0:00:19]} 43. Ke6 {[%clk 0:00:06]}  Kd8 {[%clk 0:00:18]} 44. Ra7 {[%clk 0:00:06]}  a3 {[%clk 0:00:19]} 45. Kf6 {[%clk 0:00:06]}  b5 {[%clk 0:00:19]} 46. Ra5 {[%clk 0:00:06]}  b4 {[%clk 0:00:19]} 47. Kxg6 {[%clk 0:00:04]}  b3 {[%clk 0:00:18]} 48. f5 {[%clk 0:00:02]}  b2 {[%clk 0:00:19]} 49. Rb5 {[%clk 0:00:02]}  a2 {[%clk 0:00:19]} 50. Rxc5 {[%clk 0:00:02]}  b1=Q {[%clk 0:00:19]} 51. Rd5+ {[%clk 0:00:03]}  Ke7 {[%clk 0:00:17]} 52. Re5+ {[%clk 0:00:04]}  Kf8 {[%clk 0:00:14]} 53. Rc5 {[%clk 0:00:05]}  a1=Q {[%clk 0:00:15]} 54. Rc8+ {[%clk 0:00:05]}  Ke7 {[%clk 0:00:15]} 55. Rc7+ {[%clk 0:00:06]}  Kd6 {[%clk 0:00:15]} 0-1


[Site "https://www.chess.com"]

[Event "Titled Tuesday Blitz February 14 Early 2023"]
[White "Fiorito, Joaquin"]
[Black "Degenbaev, Aziz"]
[WhiteFideId "180173"]
[BlackFideId "13802640"]
[WhiteElo "2405"]
[BlackElo "2203"]
[Result "0-1"]
[Round "03"]
[TimeControl "180+2"]
[Date "2023.02.15"]
[WhiteClock "0:00:10"]
[BlackClock "0:00:11"]

1. d4 {[%clk 0:03:00]}  Nf6 {[%clk 0:03:00]} 2. Nc3 {[%clk 0:03:00]}  d5 {[%clk 0:03:00]} 3. Bf4 {[%clk 0:03:01]}  g6 {[%clk 0:03:00]} 4. e3 {[%clk 0:03:01]}  Bg7 {[%clk 0:02:58]} 5. h4 {[%clk 0:03:01]}  h5 {[%clk 0:02:55]} 6. Nf3 {[%clk 0:03:00]}  O-O {[%clk 0:02:55]} 7. Ne5 {[%clk 0:03:00]}  c5 {[%clk 0:02:52]} 8. Qd2 {[%clk 0:03:01]}  Nc6 {[%clk 0:02:45]} 9. f3 {[%clk 0:02:58]}  cxd4 {[%clk 0:02:42]} 10. exd4 {[%clk 0:02:59]}  a6 {[%clk 0:02:35]} 11. O-O-O {[%clk 0:02:53]}  Be6 {[%clk 0:02:13]} 12. Bh6 {[%clk 0:02:41]}  Qa5 {[%clk 0:02:02]} 13. Bxg7 {[%clk 0:02:40]}  Kxg7 {[%clk 0:02:03]} 14. Kb1 {[%clk 0:02:35]}  Rfd8 {[%clk 0:01:46]} 15. g4 {[%clk 0:02:34]}  hxg4 {[%clk 0:01:40]} 16. h5 {[%clk 0:02:34]}  Nxe5 {[%clk 0:01:34]} 17. dxe5 {[%clk 0:02:34]}  Nxh5 {[%clk 0:01:34]} 18. a3 {[%clk 0:01:34]}  Rh8 {[%clk 0:00:39]} 19. Qg5 {[%clk 0:00:55]}  Qc5 {[%clk 0:00:20]} 20. fxg4 {[%clk 0:00:34]}  Ng3 {[%clk 0:00:20]} 21. Rxh8 {[%clk 0:00:32]}  Rxh8 {[%clk 0:00:20]} 22. Bd3 {[%clk 0:00:33]}  d4 {[%clk 0:00:15]} 23. Ne4 {[%clk 0:00:29]}  Nxe4 {[%clk 0:00:15]} 24. Bxe4 {[%clk 0:00:30]}  Rh2 {[%clk 0:00:16]} 25. Qf4 {[%clk 0:00:26]}  Rh4 {[%clk 0:00:12]} 26. Bf3 {[%clk 0:00:17]}  Qc4 {[%clk 0:00:12]} 27. b3 {[%clk 0:00:17]}  Qc5 {[%clk 0:00:13]} 28. Rxd4 {[%clk 0:00:16]}  Qxa3 {[%clk 0:00:12]} 29. Rd1 {[%clk 0:00:13]}  Rh3 {[%clk 0:00:13]} 30. Bg2 {[%clk 0:00:09]}  Bxb3 {[%clk 0:00:11]} 31. cxb3 {[%clk 0:00:10]}  Rxb3+ {[%clk 0:00:10]} 32. Kc2 {[%clk 0:00:10]}  Qb2# {[%clk 0:00:11]} 0-1


[Site "https://www.chess.com"]

[Event "Titled Tuesday Blitz February 14 Early 2023"]
[White "Hansen, Sune Berg"]
[Black "Donskov, Anatoly"]
[WhiteFideId "1400266"]
[BlackFideId "24143413"]
[WhiteElo "2517"]
[BlackElo "2279"]
[Result "0-1"]
[Round "03"]
[TimeControl "180+2"]
[Date "2023.02.15"]
[WhiteClock "0:00:23"]
[BlackClock "0:00:10"]

1. e4 {[%clk 0:03:00]}  c5 {[%clk 0:02:52]} 2. Nf3 {[%clk 0:03:00]}  e6 {[%clk 0:02:49]} 3. d3 {[%clk 0:02:59]}  d5 {[%clk 0:02:49]} 4. Nbd2 {[%clk 0:02:58]}  Nf6 {[%clk 0:02:48]} 5. g3 {[%clk 0:02:58]}  Nc6 {[%clk 0:02:49]} 6. Bg2 {[%clk 0:02:57]}  g6 {[%clk 0:02:49]} 7. O-O {[%clk 0:02:55]}  Bg7 {[%clk 0:02:50]} 8. Re1 {[%clk 0:02:55]}  O-O {[%clk 0:02:50]} 9. c3 {[%clk 0:02:54]}  Kh8 {[%clk 0:02:49]} 10. exd5 {[%clk 0:02:35]}  exd5 {[%clk 0:02:48]} 11. Nb3 {[%clk 0:02:32]}  b6 {[%clk 0:02:47]} 12. Bf4 {[%clk 0:02:31]}  h6 {[%clk 0:02:40]} 13. d4 {[%clk 0:02:25]}  c4 {[%clk 0:02:32]} 14. Nbd2 {[%clk 0:02:25]}  Be6 {[%clk 0:02:31]} 15. b3 {[%clk 0:02:11]}  b5 {[%clk 0:02:30]} 16. bxc4 {[%clk 0:02:10]}  bxc4 {[%clk 0:02:29]} 17. Qa4 {[%clk 0:02:07]}  Qd7 {[%clk 0:02:24]} 18. Qa3 {[%clk 0:02:06]}  Kh7 {[%clk 0:02:22]} 19. h4 {[%clk 0:01:51]}  Rfe8 {[%clk 0:02:21]} 20. Ne5 {[%clk 0:01:41]}  Nxe5 {[%clk 0:02:19]} 21. Bxe5 {[%clk 0:01:42]}  Qe7 {[%clk 0:02:11]} 22. Qa6 {[%clk 0:01:40]}  Qd7 {[%clk 0:02:07]} 23. Rab1 {[%clk 0:01:35]}  Ng4 {[%clk 0:01:55]} 24. Bxg7 {[%clk 0:01:21]}  Kxg7 {[%clk 0:01:56]} 25. Rb7 {[%clk 0:01:19]}  Qc8 {[%clk 0:01:56]} 26. Qb5 {[%clk 0:00:59]}  Rb8 {[%clk 0:01:23]} 27. Rxb8 {[%clk 0:00:48]}  Qxb8 {[%clk 0:01:24]} 28. Rb1 {[%clk 0:00:48]}  Qd8 {[%clk 0:01:04]} 29. Re1 {[%clk 0:00:32]}  Qb8 {[%clk 0:01:00]} 30. Qa4 {[%clk 0:00:27]}  Rd8 {[%clk 0:00:54]} 31. Qa3 {[%clk 0:00:25]}  Qc7 {[%clk 0:00:51]} 32. Nf1 {[%clk 0:00:20]}  Rb8 {[%clk 0:00:46]} 33. Ne3 {[%clk 0:00:20]}  Nxe3 {[%clk 0:00:46]} 34. Rxe3 {[%clk 0:00:21]}  Rb1+ {[%clk 0:00:42]} 35. Kh2 {[%clk 0:00:20]}  Qb7 {[%clk 0:00:42]} 36. Qd6 {[%clk 0:00:19]}  Rb2 {[%clk 0:00:39]} 37. Qe5+ {[%clk 0:00:18]}  Kh7 {[%clk 0:00:37]} 38. Qf6 {[%clk 0:00:18]}  Rb6 {[%clk 0:00:31]} 39. h5 {[%clk 0:00:18]}  gxh5 {[%clk 0:00:29]} 40. Re5 {[%clk 0:00:17]}  Bg4 {[%clk 0:00:20]} 41. Qf4 {[%clk 0:00:17]}  Rd6 {[%clk 0:00:11]} 42. f3 {[%clk 0:00:15]}  Be6 {[%clk 0:00:08]} 43. Rxh5 {[%clk 0:00:15]}  Bc8 {[%clk 0:00:09]} 44. g4 {[%clk 0:00:16]}  Qe7 {[%clk 0:00:08]} 45. g5 {[%clk 0:00:15]}  Rg6 {[%clk 0:00:05]} 46. Rxh6+ {[%clk 0:00:15]}  Rxh6+ {[%clk 0:00:05]} 47. gxh6 {[%clk 0:00:16]}  Be6 {[%clk 0:00:06]} 48. Qg3 {[%clk 0:00:15]}  Kxh6 {[%clk 0:00:06]} 49. f4 {[%clk 0:00:16]}  Qf6 {[%clk 0:00:06]} 50. Bf3 {[%clk 0:00:15]}  Qg6 {[%clk 0:00:05]} 51. Qh4+ {[%clk 0:00:15]}  Kg7 {[%clk 0:00:05]} 52. Qg5 {[%clk 0:00:15]}  Qxg5 {[%clk 0:00:04]} 53. fxg5 {[%clk 0:00:15]}  Kg6 {[%clk 0:00:05]} 54. Kg3 {[%clk 0:00:16]}  Kxg5 {[%clk 0:00:05]} 55. Bg2 {[%clk 0:00:16]}  f6 {[%clk 0:00:05]} 56. Bf3 {[%clk 0:00:15]}  f5 {[%clk 0:00:06]} 57. Bg2 {[%clk 0:00:15]}  f4+ {[%clk 0:00:06]} 58. Kf2 {[%clk 0:00:15]}  Bf7 {[%clk 0:00:07]} 59. Bf3 {[%clk 0:00:16]}  Kf5 {[%clk 0:00:06]} 60. Bg2 {[%clk 0:00:16]}  Kf6 {[%clk 0:00:05]} 61. Kf3 {[%clk 0:00:16]}  Kg5 {[%clk 0:00:05]} 62. Kf2 {[%clk 0:00:16]}  Be6 {[%clk 0:00:05]} 63. Bf3 {[%clk 0:00:16]}  Kf6 {[%clk 0:00:05]} 64. Bg2 {[%clk 0:00:17]}  Ke7 {[%clk 0:00:04]} 65. Kf3 {[%clk 0:00:17]}  Kd6 {[%clk 0:00:04]} 66. Kxf4 {[%clk 0:00:18]}  Bf7 {[%clk 0:00:04]} 67. Kg5 {[%clk 0:00:18]}  Be6 {[%clk 0:00:02]} 68. Kf6 {[%clk 0:00:18]}  a5 {[%clk 0:00:03]} 69. Bf3 {[%clk 0:00:18]}  a4 {[%clk 0:00:02]} 70. a3 {[%clk 0:00:19]}  Bd7 {[%clk 0:00:02]} 71. Bd1 {[%clk 0:00:20]}  Bc6 {[%clk 0:00:02]} 72. Bc2 {[%clk 0:00:20]}  Bd7 {[%clk 0:00:03]} 73. Bf5 {[%clk 0:00:21]}  Bc6 {[%clk 0:00:03]} 74. Be6 {[%clk 0:00:22]}  Bb5 {[%clk 0:00:03]} 75. Bf5 {[%clk 0:00:22]}  Bc6 {[%clk 0:00:04]} 76. Bc2 {[%clk 0:00:22]}  Bb5 {[%clk 0:00:04]} 77. Bd1 {[%clk 0:00:23]}  Bc6 {[%clk 0:00:04]} 78. Bg4 {[%clk 0:00:23]}  Bb5 {[%clk 0:00:05]} 79. Kf7 {[%clk 0:00:24]}  Bc6 {[%clk 0:00:05]} 80. Bh5 {[%clk 0:00:24]}  Bb5 {[%clk 0:00:05]} 81. Kf8 {[%clk 0:00:25]}  Bd7 {[%clk 0:00:06]} 82. Be8 {[%clk 0:00:25]}  Bxe8 {[%clk 0:00:02]} 83. Kxe8 {[%clk 0:00:26]}  Ke6 {[%clk 0:00:03]} 84. Kd8 {[%clk 0:00:26]}  Kf5 {[%clk 0:00:04]} 85. Kc7 {[%clk 0:00:26]}  Ke4 {[%clk 0:00:05]} 86. Kd6 {[%clk 0:00:27]}  Kd3 {[%clk 0:00:06]} 87. Kxd5 {[%clk 0:00:27]}  Kxc3 {[%clk 0:00:07]} 88. Ke5 {[%clk 0:00:27]}  Kb3 {[%clk 0:00:07]} 89. d5 {[%clk 0:00:28]}  c3 {[%clk 0:00:08]} 90. d6 {[%clk 0:00:29]}  c2 {[%clk 0:00:09]} 91. d7 {[%clk 0:00:30]}  c1=Q {[%clk 0:00:09]} 92. d8=Q {[%clk 0:00:31]}  Qxa3 {[%clk 0:00:10]} 93. Qd5+ {[%clk 0:00:30]}  Kb2 {[%clk 0:00:10]} 94. Qd2+ {[%clk 0:00:30]}  Kb3 {[%clk 0:00:10]} 95. Qd3+ {[%clk 0:00:28]}  Ka2 {[%clk 0:00:10]} 96. Qc4+ {[%clk 0:00:27]}  Qb3 {[%clk 0:00:11]} 97. Qc5 {[%clk 0:00:26]}  Qb2+ {[%clk 0:00:11]} 98. Kf4 {[%clk 0:00:25]}  a3 {[%clk 0:00:12]} 99. Kg3 {[%clk 0:00:24]}  Qb3+ {[%clk 0:00:09]} 100. Kh2 {[%clk 0:00:24]}  Qb2+ {[%clk 0:00:09]} 101. Kh3 {[%clk 0:00:23]}  Kb1 {[%clk 0:00:09]} 102. Qf5+ {[%clk 0:00:23]}  Qc2 {[%clk 0:00:09]} 103. Qb5+ {[%clk 0:00:24]}  Kc1 {[%clk 0:00:09]} 104. Qf1+ {[%clk 0:00:23]}  Kb2 {[%clk 0:00:10]} 105. Qb5+ {[%clk 0:00:23]}  Qb3+ {[%clk 0:00:10]} 0-1


[Site "https://www.chess.com"]